Cogmind - Beta 14 @@@ ROGUE MODE // 2024.08.15 @ 21:31:51 Player: HourglassMan Result: Destroyed by Y-45 Defender with Beam Rifle Performance ------------- Evolutions (2) 1000 Regions Visited (4) 800 Robots Destroyed (25) 125 Value Destroyed (819) 819 Prototype IDs (0) 0 Alien Tech Used (0) 0 Bonus (58) 58 TOTAL SCORE: 2802 Bonus ------- High Alert Combat Kills 8 Follower Combat Kills 50 Cogmind --------- Core Integrity 0/550 Matter 236/300 Energy 62/100 System Corruption 0% Temperature Cool (-91) Movement Core (350) Ox6 Location -8/Materials Parts ------- > --- POWER (1) -------- (None) > --- PROPULSION (4) --- (None) > --- UTILITY (3) ------ Cryofiber Web Medium Storage Unit Hardened Medium Armor Plating > --- WEAPON (3) ------- (None) > --- INVENTORY (10) --- Medium Storage Unit Reaction Control System Shield Generator Minigun Mace Peak State ------------ > --- POWER ------------ Improved Ion Engine > --- PROPULSION ------- Aluminum Leg Aluminum Leg Aluminum Leg Improved Aluminum Leg > --- UTILITY ---------- Medium Storage Unit Reaction Control System Hardened Light Armor Plating > --- WEAPON ----------- Minigun Improved Light Cannon Flak Cannon > --- INVENTORY -------- Light Ion Engine Cryofiber Web Medium Storage Unit Improved Terrain Scanner Reaction Control System Minigun High-powered Shotgun Shock Bomb Launcher Grenade Launcher Mace [Rating: 23] Favorites ----------- Power Improved Ion Engine Engine Improved Ion Engine Propulsion Aluminum Leg Leg Aluminum Leg Wheel Wheel Utility Medium Storage Unit Device Reaction Control System Storage Medium Storage Unit Protection Hardened Light Armor Plating Weapon Shotgun Energy Gun Beam Rifle Ballistic Gun Shotgun Ballistic Cannon Improved Light Cannon Launcher Shock Bomb Launcher Impact Weapon Mace Build | -11 -10 -9 -9 -8 ------- Run | Yrd Mat Mat Min Mat Slots Evolved 4 | . . 2 . 2 Power . | . . . . . Propulsion 2 | . . 1 . 1 Utility 1 | . . . . 1 Weapon 1 | . . 1 . . Parts Attached 49 | 6 6 15 6 16 Power 7 | 1 . 4 1 1 Engine 7 | 1 . 4 1 1 Core . | . . . . . Reactor . | . . . . . Propulsion 12 | 2 2 4 2 2 Treads . | . . . . . Leg 10 | . 2 4 2 2 Wheel 2 | 2 . . . . Hover . | . . . . . Flight . | . . . . . Utility 11 | 1 3 1 . 6 Device 5 | . 1 . . 4 Storage 3 | 1 1 . . 1 Processor . | . . . . . Hackware . | . . . . . Protection 3 | . 1 1 . 1 Artifact . | . . . . . Weapon 19 | 2 1 6 3 7 Energy Gun 3 | . . 2 1 . Energy Cannon . | . . . . . Ballistic Gun 8 | 2 1 3 . 2 Ballistic Cannon 4 | . . . 1 3 Launcher 3 | . . 1 . 2 Special Weapon . | . . . . . Impact Weapon 1 | . . . 1 . Slashing Weapon . | . . . . . Piercing Weapon . | . . . . . Special Melee Weapon . | . . . . . Unidentified Prototypes . | . . . . . Parts Lost 19 | . 1 3 . 15 Power 4 | . 1 1 . 2 Propulsion 5 | . . 1 . 4 Utility 4 | . . 1 . 3 Weapon 6 | . . . . 6 Highest Loss Streak 13 | . 1 2 . 13 To Critical Strikes . | . . . . . Average Slot Usage (%) 95 | . 94 99 100 87 Engine 10 | . 12 10 11 7 Leg 28 | . 16 32 33 29 Wheel 2 | . 11 . . . Device 3 | . 2 . . 9 Storage 11 | . 14 11 11 9 Protection 9 | . 7 10 11 7 Energy Gun 3 | . . 3 7 1 Ballistic Gun 17 | . 28 29 11 6 Ballistic Cannon 4 | . . . 6 10 Impact Weapon 3 | . . . 7 4 Peak Build Rating 23 | 6 10 14 16 23 Average Rating 14 | 4 8 13 14 19 On Entrance 9 | . 6 9 14 16 Naked Turns . | . . . . . Heaviest Build 36 | 12 23 29 31 36 Greatest Support 43 | 20 20 30 33 43 Greatest Overweight (x) 8 | . 1 1 . 8 Average Overweight (x) . | . . . . . Largest Inventory Capacity 10 | 8 10 10 10 10 Average Capacity 9 | 7 9 10 10 10 Most Carried 10 | 4 10 10 10 10 Average Carried 9 | 2 8 9 10 8 Final Capacity 10 | 8 10 10 10 10 Final Carried 10 | 4 10 10 10 5 Class Distribution -------------------- 35% | Tank 30% | Mutant 26% | Scavenger-Mutant 7% | Scavenger-Tank Dominant Class ---------------- Mutant | -10/Materials Tank | -9/Materials Scavenger-Mutant | -9/Mines Scavenger-Mutant | -8/Materials Resources | -11 -10 -9 -9 -8 ----------- Run | Yrd Mat Mat Min Mat Matter Collected 1077 | 251 147 460 113 106 Remotely . | . . . . . Salvage Created 778 | . 203 437 33 105 Parts 37 | . 8 21 3 5 Haulers Intercepted . | . . . . . Recyclers Shooed . | . . . . . Parts Field Recycled . | . . . . . Retrieved Matter . | . . . . . Parts Self-Destructed . | . . . . . Prevented . | . . . . . Kills | -11 -10 -9 -9 -8 ------- Run | Yrd Mat Mat Min Mat Combat Hostiles Destroyed 23 | . 5 14 1 3 Guns 17 | . 5 12 . . Cannons 4 | . . . 1 3 AOE 2 | . . 2 . . Classes Destroyed 7 | . 1 4 1 1 Worker 1 | . . 1 . . Tunneler 1 | . . 1 . . Swarmer 3 | . . 3 . . Grunt 14 | . 5 9 . . Duelist 1 | . . . 1 . Sentry 4 | . . 2 . 2 Hunter 1 | . . . . 1 Best Kill Streak 4 | . 3 4 1 1 Combat Bots Only 4 | . 3 4 1 1 Max Kills in Single Turn 2 | . 1 2 1 1 Gunslinging . | . . . . . Exploded 2 | . . 2 . . Melee . | . . . . . Uniques/NPCs Destroyed . | . . . . . Combat | -11 -10 -9 -9 -8 -------- Run | Yrd Mat Mat Min Mat Hostile Shots Fired 367 | . 29 123 2 213 Missed 98 | . 7 32 . 59 Damage Taken 3532 | . 249 1043 69 2171 Core 768 | . 58 158 . 552 Absorbed by Shields . | . . . . . Core Remaining (%) 78 | 100 76 . 60 . Volleys Fired 70 | . 15 38 3 14 Largest 3 | . 2 3 2 3 Hottest 108 | . 43 103 95 108 Shots Fired 169 | . 30 103 6 30 Gun 149 | . 30 102 3 14 Cannon 17 | . . . 3 14 Launcher 3 | . . 1 . 2 Special . | . . . . . Kinetic 149 | . 30 90 3 26 Thermal 17 | . . 12 3 2 Explosive 1 | . . 1 . . Electromagnetic 2 | . . . . 2 Robot Hit Streak 12 | . 8 12 1 10 Robot Miss Streak 6 | . 1 6 2 2 Penetration Max . | . . . . . Secondary Targets 4 | . . 4 . . Max Gunslinging Chain 1 | . . 1 . . Shots Hit Robots 126 | . 22 78 3 23 Core Hits 52 | . 10 31 2 9 Critical Kills . | . . . . . Critical Parts Destroyed 4 | . 1 3 . . Critical Strikes 5 | . 1 3 . 1 Destroy 5 | . 1 3 . 1 Melee Attacks . | . . . . . Impact . | . . . . . Slashing . | . . . . . Piercing . | . . . . . Sneak Attacks . | . . . . . Combat Hostiles . | . . . . . Follow-up Attacks . | . . . . . Damage Inflicted 1987 | . 278 1198 55 456 Guns 1507 | . 272 1048 14 173 Cannons 243 | . . . 41 202 Explosions 212 | . . 140 . 72 Melee . | . . . . . Ramming 25 | . 6 10 . 9 Kinetic 1638 | . 272 979 41 346 Thermal 112 | . . 69 14 29 Explosive 140 | . . 140 . . Electromagnetic 72 | . . . . 72 Impact . | . . . . . Slashing . | . . . . . Piercing . | . . . . . Highest Corruption . | . . . . . Average Corruption . | . . . . . Corruption Purged . | . . . . . Corruption Blocked . | . . . . . Overload Shots . | . . . . . Overflow Damage 40 | . . 40 . . Projectiles . | . . . . . Explosions 40 | . . 40 . . Melee . | . . . . . Knockbacks 4 | . . . 1 3 Impact . | . . . . . Kinetic 4 | . . . 1 3 Secondary . | . . . . . Self-Inflicted Damage 3 | . 3 . . . Shots . | . . . . . Rammed 1 | . 1 . . . Targets Rammed 5 | . 1 2 . 2 Kicked 4 | . . 2 . 2 Crushed . | . . . . . Highest Temperature 315 | . 5 315 117 144 Average Temperature 91 | . 3 109 60 43 Received Heat Transfer 1086 | . 135 564 . 387 Effects 3 | . . 3 . . Interference 3 | . . 3 . . Siege Activations . | . . . . . Robots Corrupted . | . . . . . Combat Hostiles . | . . . . . Parts Fried . | . . . . . Impact Corruptions . | . . . . . Robots Melted . | . . . . . Combat Hostiles . | . . . . . Parts Melted . | . . . . . Heat Transferred 309 | . . 198 37 74 Parts Sabotaged . | . . . . . Parts Stolen . | . . . . . Parts Stripped . | . . . . . Power Chain Reactions . | . . . . . Alert | -11 -10 -9 -9 -8 ------- Run | Yrd Mat Mat Min Mat Peak Influence 403 | . 183 403 180 197 Initial 102 | . . 5 102 . Average 110 | . 128 191 87 58 Maximum Alert Level 2 | . . 2 . . Low Security (%) 83 | 100 100 34 100 100 Level 1 14 | . . 59 . . Level 2 1 | . . 5 . . Level 3 . | . . . . . Level 4 . | . . . . . Level 5 . | . . . . . High Security . | . . . . . Max Security . | . . . . . Squads Dispatched 10 | . 3 3 . 4 Investigation 3 | . 2 . . 1 Extermination . | . . . . . Reinforcement 7 | . 1 3 . 3 Assault . | . . . . . Garrison . | . . . . . Intercept . | . . . . . Searches Triggered . | . . . . . Construction Impeded 2 | . . 1 . 1 Haulers Reinforced . | . . . . . Active Scanning Responses . | . . . . . Cargo Convoy Interrupts . | . . . . . Stealth | -11 -10 -9 -9 -8 --------- Run | Yrd Mat Mat Min Mat Distress Signals 3 | . . 2 . 1 Communications Jammed . | . . . . . Distress Signals . | . . . . . Times Spotted 56 | . 12 21 3 20 Peak Tracking Total 11 | . 3 8 3 11 Tactical Retreats 10 | . 1 4 . 5 Traps | -11 -10 -9 -9 -8 ------- Run | Yrd Mat Mat Min Mat Traps Triggered . | . . . . . Indirectly . | . . . . . Trap Hack Attempts . | . . . . . Triggered . | . . . . . Disarmed . | . . . . . Reprogrammed . | . . . . . Reused . | . . . . . Traps Extracted . | . . . . . Installed . | . . . . . Triggered . | . . . . . Machines | -11 -10 -9 -9 -8 ---------- Run | Yrd Mat Mat Min Mat Machines Disabled 1 | . . . . 1 Max in Single Turn 1 | . . . . 1 Machines Repaired . | . . . . . Machines Dismantled . | . . . . . Machines Sabotaged . | . . . . . Overloaded Fab Kills . | . . . . . Hacking | -11 -10 -9 -9 -8 --------- Run | Yrd Mat Mat Min Mat Machines Accessed 5 | . 3 . . 2 Terminals 2 | . 2 . . . Fabricators . | . . . . . Repair Stations . | . . . . . Recycling Units 2 | . 1 . . 1 Scanalyzers 1 | . . . . 1 Garrison Access . | . . . . . Total Hacks 22 | . 10 . . 12 Successful 18 | . 7 . . 11 Failed 4 | . 3 . . 1 Catastrophic . | . . . . . Database Lockouts . | . . . . . Manual . | . . . . . Terminals 6 | . 6 . . . Fabricators . | . . . . . Repair Stations . | . . . . . Recycling Units 7 | . 4 . . 3 Scanalyzers 9 | . . . . 9 Garrison Access . | . . . . . Terminal Hacks 6 | . 6 . . . Record 2 | . 2 . . . Alert Level 2 | . 2 . . . Transport Status 1 | . 1 . . . Zone Layout 1 | . 1 . . . Fabricator Hacks . | . . . . . Repair Station Hacks . | . . . . . Recycling Unit Hacks 3 | . 1 . . 2 Process 1 | . . . . 1 Retrieve Matter 2 | . 1 . . 1 Scanalyzer 9 | . . . . 9 Insert Component 4 | . . . . 4 Analyze 5 | . . . . 5 Garrison Access Hacks . | . . . . . Unauthorized Hacks . | . . . . . Terminals . | . . . . . Fabricators . | . . . . . Repair Stations . | . . . . . Recycling Units . | . . . . . Scanalyzers . | . . . . . Garrison Access . | . . . . . Data Cores Recovered . | . . . . . Used . | . . . . . Hacking Detections 4 | . 3 . . 1 Full Trace Events 3 | . 2 . . 1 Feedback Events . | . . . . . Feedback Blocked . | . . . . . Robot Schematics Acquired . | . . . . . Robots Built . | . . . . . Authchips . | . . . . . Time . | . . . . . Total Robot Build Rating . | . . . . . Part Schematics Acquired 4 | . . . . 4 Parts Built . | . . . . . Authchips . | . . . . . Time . | . . . . . Total Part Build Rating . | . . . . . Parts Repaired . | . . . . . Time . | . . . . . Parts Recycled . | . . . . . Recycled Matter 48 | . . . . 48 Retrieved Matter 48 | . . . . 48 Retrieved Components . | . . . . . Parts Scanalyzed 4 | . . . . 4 Part Schematics Acquired 4 | . . . . 4 Parts Damaged . | . . . . . Bothacking | -11 -10 -9 -9 -8 ------------ Run | Yrd Mat Mat Min Mat Used RIF Installer . | . . . . . Robots Hacked . | . . . . . Non-combat . | . . . . . Combat . | . . . . . Robot Hacks Applied . | . . . . . Relay Couplers Released . | . . . . . Fabnet Peak Effective % . | . . . . . Robots Rewired . | . . . . . Allies Hacked . | . . . . . Hacks Repelled . | . . . . . Allies | -11 -10 -9 -9 -8 -------- Run | Yrd Mat Mat Min Mat Total Allies 2 | . . . 2 . Largest Group 2 | . . . 2 . Highest-Rated Group 38 | . . . 38 . Highest-Rated Ally 31 | . . . 31 . Total Orders . | . . . . . Ally Attacks 8 | . . . 8 . Total Damage 84 | . . . 84 . Kills 2 | . . . 2 . Allies Corrupted . | . . . . . Allies Melted . | . . . . . Intel | -11 -10 -9 -9 -8 ------- Run | Yrd Mat Mat Min Mat Robot Analysis Total . | . . . . . Derelict Logs Recovered 1 | . . . 1 . Drone Launches . | . . . . . Drone Recoveries . | . . . . . Exploration | -11 -10 -9 -9 -8 ------------- Run | Yrd Mat Mat Min Mat Turns Passed 2226 | 66 424 549 571 616 Spaces Moved 1466 | 67 268 308 459 364 Core 25 | 2 . . . 23 Treads . | . . . . . Legs 1247 | . 139 308 459 341 Wheels 194 | 65 129 . . . Hover . | . . . . . Flight . | . . . . . Fastest Speed 50 | 50 80 120 120 120 Average Speed 123 | 79 125 120 120 136 Slowest Speed 450 | 80 190 190 120 450 Overloaded Moves . | . . . . . Propulsion Burnouts . | . . . . . Robots Hopped . | . . . . . Cave-ins Triggered . | . . . . . Exploration Rate (%) 39 | 4 43 25 95 28 Regions Visited 4 Branch Regions 1 Pre-discovered Areas . | . . . . . Known Exits Taken . | . . . . . Unknown Exits Taken 4 | 1 1 1 1 . Scrap Searched 2 | . . . 2 . Spaces Dug . | . . . . . Terrain Destroyed 8 | . . 8 . . Melee . | . . . . . Projectile . | . . . . . AOE 8 | . . 8 . . Terrain Rammed . | . . . . . Walls Destroyed . | . . . . . Machines Disabled . | . . . . . Actions | -11 -10 -9 -9 -8 --------- Run | Yrd Mat Mat Min Mat Total 1745 | 76 328 402 474 465 Wait 95 | . 20 25 1 49 Move 1462 | 66 267 307 458 364 Hop . | . . . . . Pick Up 32 | 4 11 8 . 9 Fast Attach 16 | 6 2 1 3 4 Attach 17 | . 3 6 . 8 Detach 2 | . 1 . . 1 Swap 16 | . 1 8 3 4 Drop 30 | . 7 7 6 10 Fire 70 | . 15 38 3 14 Melee . | . . . . . Ram 1 | . 1 . . . Kick 4 | . . 2 . 2 Crush . | . . . . . Escape Stasis . | . . . . . Rewire . | . . . . . Trap . | . . . . . Miscellaneous . | . . . . . Route ------- -11/Scrapyard -10/Materials -9/Materials -9/Mines (discovered 3 exits: *Mat x2 / [*Exi]) -8/Materials History --------- Turn | Location | Event 17 | -11/Scrapyard | Discovered new exit (range 16) 67 | -11/Scrapyard | Entered Materials 280 | -10/Materials | Discovered new exit (range 5) 310 | -10/Materials | Build established: Mutant 491 | -10/Materials | Entered another Materials area 491 | -9/Materials | Evolved 2 slots: Propulsion x1, Weapon x1 785 | -9/Materials | Build established: Tank 960 | -9/Materials | Discovered new exit (range 12) 1040 | -9/Materials | Entered Mines 1074 | -9/Mines | Discovered new exit (range 9) 1244 | -9/Mines | Found DCF Scrap (14 items) 1371 | -9/Mines | Discovered new exit (range 5) 1465 | -9/Mines | Deemed a non-threat by the Exiles lab entrance 1465 | -9/Mines | Discovered new exit (range 5) 1554 | -9/Mines | Learned Materials trap positions 1611 | -9/Mines | Entered Materials 1611 | -8/Materials | Evolved 2 slots: Propulsion x1, Utility x1 1612 | -8/Materials | Loaded intel: 23 trap records 1633 | -8/Materials | Build established: Scavenger-Mutant 2193 | -8/Materials | Core integrity fell below 50% 2208 | -8/Materials | Core integrity fell below 20% 2227 | -8/Materials | Destroyed by Y-45 Defender with Beam Rifle Last Messages --------------- Minigun destroyed. Critical hit (Burn: +37). Shock Bomb Launcher destroyed. Slug penetrates Wall. Aluminum Leg destroyed. Reaction Control System destroyed. Slug penetrates Wall. Flak Cannon destroyed. Imp. Light Cannon destroyed. Slug penetrates Wall. Hpw. Shotgun destroyed. Critical hit (Burn: +37). Slug penetrates Wall. Imp. Terrain Scanner destroyed. Slug penetrates Wall. ALERT: Suspicious intruders detected, dispatching Specialist reinforcements to area. Atomic Centrifuge disabled. Acquired Hrd. Medium Armor Plating. Acquired Shield Generator. Map ----- +----------------------------------------------------+ | ???????????????????????????????????????????# ??# | | ???????????????????????????????????????????# ??# | | ???????????????????????????????????????????# ??# | | ???????????????????????????????????????????# ?#] | | ???????????????????????????????????????????# ?# | | ??????????????????????????????????? ###????# ?# | | ??????????????????????????????????? #### ### | | ?????????????????????????????????? % | | ??????????????????????????????????# | | ??????????????????????????????????# = | | ??????????????????????????????????? ########/# | | ???????????????????????????????????# ## ! | | ???????????????????????????????????# ## | | ???????????????????????????????????# ## """ """ | | ???????????????????????????????????+ ## """ """ | | ???????????????????????????????????# ## """ """ | | ???????????????????????????????????# ## | | ???????????????????????????????????# #########"# | | ?????????????????????????? ????????# #?????### # | | ???????????????????????????????????# #???????# # | | ???????????????????????????????????# #?????### # | | ???????????????????????##########??# ####### | | ????^???^??????????????# """ ####Y | | ???????????????????????# "T" gg Y | | ???????????????????????# #### | | ???????????????????????#[@ ##?##+######## % | | ???????????????????????#[[ #?? ?????###+# | | ??^??????^?????????????#Y[ ""t# ][! #???????? | | ??????????????????????# """ # ][! #???????? | | ??????????????????????## ! """ # ]! #???????? | | ???????????????????????# a # #???????? | | ???????????????????????#####+#### #???? ??? | | ??????????????????????????? ??# #???????? | | ??????????????????????????? ??# ! #???????? | | ??????????????????????????? ??# #???????? | | ??????????????????????????? ??##########???????? | | ??????????????????????????? ???????????????????? | | ?????????????????????????????????????????????????? | | ?????????????????????????????????????????????????? | | ?????????????????????????????????????????????????? | | ?????????????????????????????????????????????????? | | ?????????????????????????????????????????????????? | | ?????????????????????????????????????????????????? | | ?????????????????????????????????????????????????? | | ?????????????????????????????????????????????????? | | ?????????????????????????????????????????????????? | | ?????????????????????????????????????????????????? | | ?????????????????????????????????????????????????? | | ?????????????????????????????????????????????????? | | ?????????????????????????????????????????????????? | +----------------------------------------------------+ Best States ------------- Heat Dissipation 35 Energy Generation 12 Energy Capacity 265 Matter Stores 300 Matter Capacity 300 Sight Range 16 Robot Scan Range 14 Terrain Scan Range 16 Terrain Scan Density 10 Base Temperature (-) 100 Armor Coverage 225 Evasion (%) 63 Item Schematics ----------------- Grenade Launcher | -8/Materials | Scanalyzed Med. Storage Unit | -8/Materials | Scanalyzed Hrd. Light Armor Plating | -8/Materials | Scanalyzed Lgt. Assault Rifle | -8/Materials | Scanalyzed Robot Schematics ------------------ None Fabricated ------------ Nothing Alien Tech Used ----------------- None Achievements -------------- None Challenges ------------ None Game ------ Seed GravitonHugeMantle Manual? 0 Play Time 00:41:11 Cumulative 14.7 hours Start 2024.08.15 @ 13:46:50 End 2024.08.15 @ 21:31:51 Sessions 3 Manual Loads 0 Difficulty Rogue Special Mode None Game No. 35 Rogue 35 Adventurer 0 Explorer 0 Win Type - Total 0 Types 0/0/0/0/0/0/0/0/0 Lore% 9 Gallery% 18 Achievement% 16 Wizard Run 0 Options --------- Layout 1 ASCII 0 Keyboard 1 Movement Numpad Keybinds 0 Fullscreen 1 Font 24/Smallcaps Map View 50x35 Zoom Use 28% Tactical HUD 0 Map Filters NONE Filters NONE Steam 1 RUN: 3189f5cc-abfe-45be-b85a-febd458cf045